Cogmind - Beta 16 @@@ ROGUE MODE // 2025.12.02 @ 15:50:34 Player: Sandwich Result: Self-destructed Performance ------------- Evolutions (5) 2500 Regions Visited (13) 2600 Robots Destroyed (78) 390 Value Destroyed (3198) 3198 Prototype IDs (11) 220 Alien Tech Used (0) 0 Bonus (1063) 1063 TOTAL SCORE: 9971 Bonus ------- High Alert Combat Kills 106 Follower Combat Kills 85 Entered Garrisons 400 Used RIF Installer 500 Friendly Fire -28 Cogmind --------- Core Integrity 669/1000 Matter 300/300 Energy 167/167 System Corruption 0% Temperature Cool (0) Movement Hovering (53) Location -5/Upper Caves Parts ------- > --- POWER (2) -------- Nuclear-Neutrino Core > --- PROPULSION (5) --- Hovering Gravmag-Armored Exoskeleton > --- UTILITY (6) ------ Scrap Engine Advanced Cooling System Makeshift Salvage Targeting Computer > --- WEAPON (4) ------- Accelerated Magnetic Construct/C > --- INVENTORY (5) ---- Large Storage Unit Targeting Computer Relay Coupler [Hunter] (17) Advanced Drone Bay (2/2) Peak State ------------ > --- POWER ------------ Nuclear-Neutrino Core > --- PROPULSION ------- Hovering Gravmag-Armored Exoskeleton > --- UTILITY ---------- Armored Scrap Engine High-capacity Storage Unit Makeshift Salvage Targeting Computer Hacking Suite > --- WEAPON ----------- Gauss Rifle Gauss Rifle Hpw. Accelerated Mass Construct/G Accelerated Magnetic Construct/C > --- INVENTORY -------- Mini Fusion Reactor Wheel Compact Wheel Improved Heat Sink Advanced Heat Sink Advanced Heat Sink Makeshift Microdissipator Network Large Storage Unit Large Storage Unit Experimental Sensor Array Targeting Computer Targeting Computer Jamming Amplifier Heavy Armor Plating Relay Coupler [Grunt] Relay Coupler [Brawler] Relay Coupler [Hunter] Rocket Launcher Remote Datajack [Rating: 79] Favorites ----------- Power Constructs Engine Ion Engine Power Core Constructs Reactor Mini Fusion Reactor Propulsion Constructs Treads Light Treads Wheel Compact Wheel Hover Unit Constructs Utility Improved Heat Sink Device Improved Heat Sink Storage High-capacity Storage Unit Processor Makeshift Salvage Targeting Computer Hackware Hacking Suite Protection Hardened Medium Armor Plating Weapon Autogun Energy Gun Small Laser Energy Cannon Constructs Ballistic Gun Autogun Launcher Rocket Launcher Build | -11 -10 -10 -10 -9 -8 -8 -8 -6 -6 -6 -6 -5 -5 ------- Run | Yrd Mat Min Exi Min Mat Sto Rec Fac Gar Fac Gar Fac Upp Slots Evolved 10 | . . . . . 4 . . 4 . . . 2 . Power 1 | . . . . . . . . 1 . . . . . Propulsion 3 | . . . . . 1 . . 1 . . . 1 . Utility 4 | . . . . . 1 . . 2 . . . 1 . Weapon 2 | . . . . . 2 . . . . . . . . Parts Attached 50 | 6 5 3 . 5 4 8 7 1 7 . 2 2 . Power 4 | 1 . . . 2 . . 1 . . . . . . Engine 3 | 1 . . . 2 . . . . . . . . . Core . | . . . . . . . . . . . . . . Reactor 1 | . . . . . . . 1 . . . . . . Propulsion 8 | 2 1 1 . 1 1 2 . . . . . . . Treads 4 | 1 . . . . 1 2 . . . . . . . Leg . | . . . . . . . . . . . . . . Wheel 4 | 1 1 1 . 1 . . . . . . . . . Hover . | . . . . . . . . . . . . . . Flight . | . . . . . . . . . . . . . . Utility 17 | 1 2 1 . . 1 2 3 1 2 . 2 2 . Device 6 | . 1 1 . . 1 . 1 . . . 1 1 . Storage 3 | 1 1 . . . . . 1 . . . . . . Processor 3 | . . . . . . . . 1 1 . . 1 . Hackware 1 | . . . . . . . . . . . 1 . . Protection 4 | . . . . . . 2 1 . 1 . . . . Artifact . | . . . . . . . . . . . . . . Weapon 21 | 2 2 1 . 2 2 4 3 . 5 . . . . Energy Gun 2 | 2 . . . . . . . . . . . . . Energy Cannon . | . . . . . . . . . . . . . . Ballistic Gun 18 | . 2 1 . 2 2 4 3 . 4 . . . . Ballistic Cannon . | . . . . . . . . . . . . . . Launcher 1 | . . . . . . . . . 1 . . . . Special Weapon . | . . . . . . . . . . . . . . Impact Weapon . | . . . . . . . . . . . . . . Slashing Weapon . | . . . . . . . . . . . . . . Piercing Weapon . | . . . . . . . . . . . . . . Special Melee Weapon . | . . . . . . . . . . . . . . Unidentified Prototypes 2 | . . . . . . . 2 . . . . . . Parts Lost 28 | . 1 2 . 1 . . 1 . 10 . 7 . 6 Power 3 | . . . . . . . . . . . 2 . 1 Propulsion 6 | . 1 1 . 1 . . . . 1 . . . 2 Utility 7 | . . . . . . . 1 . 3 . . . 3 Weapon 12 | . . 1 . . . . . . 6 . 5 . . Highest Loss Streak 6 | . 1 1 . 1 . . 1 . 5 . 6 . 2 To Critical Strikes 1 | . . . . . . . . . . . 1 . . Average Backups 15 | 2 7 14 15 14 14 14 15 15 17 18 18 18 16 Power . | . 1 1 1 1 1 1 1 1 1 1 1 1 . Propulsion 2 | 2 3 2 2 1 . 1 1 2 2 2 2 2 1 Utility 8 | . . 1 2 2 2 3 7 8 11 13 13 14 13 Weapon 4 | . 2 10 10 9 10 9 5 4 2 1 . . . Tool/Special . | . . . . . . . . . . . . . . Unused Backups 38 | . 3 2 . . . 5 5 . 5 1 . 1 16 Power 2 | . . . . . . 1 1 . . . . . . Propulsion 9 | . . 2 . . . . 2 . 3 . . . 2 Utility 15 | . . . . . . . . . 1 . . 1 13 Weapon 11 | . 3 . . . . 4 2 . 1 1 . . . Tool/Special 1 | . . . . . . . . . . . . . 1 Average Slot Usage (%) 70 | . 90 99 100 99 90 100 68 52 59 60 55 36 39 Engine 6 | . 14 14 14 14 9 9 5 4 1 5 5 . . Core 1 | . . . . . . . . 1 3 . . 5 5 Treads 5 | . 14 14 14 14 14 18 4 . 1 . . . . Leg 2 | . . . . . . . 3 4 4 3 3 . . Wheel 4 | . 13 13 14 13 9 9 4 . . . . . . Hover 1 | . . . . . . . 1 1 . 1 . 4 5 Device 11 | . 5 14 14 14 14 12 8 13 13 13 11 11 11 Storage 8 | . 14 14 14 14 9 9 9 6 6 6 6 5 4 Processor 2 | . . . . . . . . 5 4 6 6 6 8 Energy Gun 4 | . 27 . . . . . 2 13 6 . 1 . . Ballistic Gun 16 | . . 27 28 28 34 36 23 . 10 15 14 . . Peak Build Rating 79 | 6 11 13 13 15 23 25 52 52 77 75 79 73 73 Average Rating 43 | 4 6 12 13 13 21 24 40 48 62 69 69 71 68 On Entrance 34 | . 6 11 13 13 15 23 23 41 52 73 75 58 73 Avg Prop Armor Cover (%) 11 | 15 13 11 11 11 11 12 11 . . . . . . Naked Turns . | . . . . . . . . . . . . . . Heaviest Build 75 | 13 32 32 32 34 41 48 58 55 75 69 71 55 55 Greatest Support 100 | 20 10 20 16 16 16 16 48 48 100 35 54 54 47 Greatest Overweight (x) 4 | 1 4 3 1 2 2 2 3 1 1 1 2 1 1 Average Overweight (x) . | . 1 1 1 1 2 2 1 1 . 1 . . . Largest Inventory Capacity 20 | 8 15 15 15 15 15 15 20 20 20 20 20 20 20 Average Capacity 17 | 6 9 15 15 15 15 15 16 20 20 20 20 20 18 Most Carried 20 | 5 15 15 15 15 15 15 18 17 20 20 20 20 20 Average Carried 16 | 2 7 14 15 14 14 14 15 15 18 19 19 19 18 Final Capacity 20 | 8 15 15 15 15 15 15 20 20 20 20 20 20 5 Final Carried 20 | 5 15 15 15 15 15 15 18 16 19 20 18 20 5 Scrap Engine Consumption 148 | . . . . . . . 45 8 52 13 21 2 7 Constructs Created 9 | . . . . . . . 4 . 2 . 2 . 1 Constructs Modified 58 | . . . . . . . 15 2 25 8 4 4 . Class Distribution -------------------- 42% | Construct 31% | Mutant 16% | Scavenger-Construct 3% | Scavenger-Tank Dominant Class ---------------- Mutant | -10/Materials Mutant | -10/Mines Mutant | -10/Exiles Mutant | -9/Mines Scavenger-Gunner | -8/Materials Scavenger-Tank | -8/Storage Construct | -8/Recycling Construct | -6/Factory Construct | -6/Garrison Scavenger-Construct | -6/Factory Scavenger-Construct | -6/Garrison Construct | -5/Factory Construct | -5/Upper Caves Resources | -11 -10 -10 -10 -9 -8 -8 -8 -6 -6 -6 -6 -5 -5 ----------- Run | Yrd Mat Min Exi Min Mat Sto Rec Fac Gar Fac Gar Fac Upp Matter Collected 2933 | 244 36 185 . 124 . 365 287 30 1048 135 311 . 168 Remotely . | . . . . . . . . . . . . . . Salvage Created 3468 | . 226 377 . 112 . 391 559 50 989 203 561 . . Parts 208 | . 17 27 . 11 . 18 23 5 55 17 35 . . Haulers Intercepted 1 | . 1 . . . . . . . . . . . . Recyclers Shooed 1 | . 1 . . . . . . . . . . . . Parts Field Recycled . | . . . . . . . . . . . . . . Retrieved Matter . | . . . . . . . . . . . . . . Parts Self-Destructed . | . . . . . . . . . . . . . . Prevented . | . . . . . . . . . . . . . . Parts Restored . | . . . . . . . . . . . . . . Kills | -11 -10 -10 -10 -9 -8 -8 -8 -6 -6 -6 -6 -5 -5 ------- Run | Yrd Mat Min Exi Min Mat Sto Rec Fac Gar Fac Gar Fac Upp Combat Hostiles Destroyed 67 | . 8 9 . 5 . 5 5 1 22 2 10 . . Guns 60 | . 7 9 . 5 . 5 5 1 16 2 10 . . AOE 6 | . . . . . . . . . 6 . . . . Classes Destroyed 14 | . 4 1 . 1 . 1 2 1 3 1 . . . Hauler 1 | . 1 . . . . . . . . . . . . Recycler 6 | . . 1 . . . 2 3 . . . . . . Operator 2 | . . . . . . . . . . 2 . . . Watcher 2 | . 1 . . . . . . . 1 . . . . Swarmer 24 | . 6 3 . 4 . . . . 8 . 3 . . Grunt 24 | . 2 6 . . . 3 . . 9 1 3 . . Brawler 1 | . . . . . . . . . 1 . . . . Duelist 1 | . . . . 1 . . . . . . . . . Sentry 5 | . . . . . . 2 2 . . . 1 . . Hunter 3 | . . . . . . . . . 3 . . . . Programmer 4 | . . . . . . . . 1 . 1 2 . . Behemoth 1 | . . . . . . . . . 1 . . . . Scientist 1 | . . . . . . . 1 . . . . . . Scrapper 3 | . . . . . . . 3 . . . . . . Guerrilla 1 | . . . . . . . . . . . 1 . . Best Kill Streak 6 | . 4 6 . 4 . 3 3 1 5 1 5 . . Combat Bots Only 5 | . 3 3 . 4 . 2 3 1 5 1 5 . . Max Kills in Single Turn 2 | . 1 1 . 1 . 1 1 1 2 1 1 . . Gunslinging . | . . . . . . . . . . . . . . Exploded 2 | . . . . . . . . . 2 . . . . Melee . | . . . . . . . . . . . . . . Uniques/NPCs Destroyed . | . . . . . . . . . . . . . . Combat | -11 -10 -10 -10 -9 -8 -8 -8 -6 -6 -6 -6 -5 -5 -------- Run | Yrd Mat Min Exi Min Mat Sto Rec Fac Gar Fac Gar Fac Upp Hostile Shots Fired 773 | . 37 50 . 17 . 26 15 4 217 23 266 . 118 Missed 257 | . 8 17 . 1 . 3 1 1 67 5 115 . 39 Hits 516 | . 29 33 . 16 . 23 14 3 150 18 151 . 79 Projectile 516 | . 29 33 . 16 . 23 14 3 150 18 151 . 79 Critical Strikes 19 | . . . . . . 4 1 . 5 1 5 . 3 Damage Taken 8264 | . 294 441 . 130 . 348 333 45 2982 396 1740 . 1555 Core 1173 | . 107 71 . 37 . 13 47 . 355 34 178 . 331 Absorbed by Shields 15 | . . . . . . . . . 15 . . . . Regen/Repaired (Parts) 1395 | . . . . . . . 19 59 770 263 147 137 . Core Remaining (%) 59 | 100 . . . 14 . . 89 . . . 33 . . Volleys Fired 233 | . 25 25 . 13 . 14 14 2 88 15 37 . . Largest 4 | . 2 2 . 2 . 4 4 2 4 3 4 . . Hottest 128 | . 90 46 . 46 . 92 126 61 125 73 128 . . Shots Fired 627 | . 50 49 . 26 . 56 53 4 247 45 97 . . Gun 610 | . 50 49 . 26 . 56 53 4 236 43 93 . . Cannon 2 | . . . . . . . . . . 2 . . . Launcher 15 | . . . . . . . . . 11 . 4 . . Special . | . . . . . . . . . . . . . . Kinetic 498 | . . 49 . 26 . 56 46 . 193 45 83 . . Thermal 114 | . 50 . . . . . 7 4 43 . 10 . . Explosive 15 | . . . . . . . . . 11 . 4 . . Electromagnetic . | . . . . . . . . . . . . . . Robot Hit Streak 21 | . 8 15 . 4 . 14 10 3 21 12 8 . . Robot Miss Streak 8 | . 2 3 . 6 . 2 2 1 8 2 3 . . Penetration Max 1 | . . . . . . . . . . . 1 . . Secondary Targets 6 | . . 2 . . . 1 . . 2 . 1 . . Max Gunslinging Chain 1 | . . 1 . . . 1 . . 1 . 1 . . Shots Hit Robots 392 | . 28 35 . 13 . 42 32 3 154 30 55 . . Core Hits 163 | . 12 17 . 7 . 14 15 2 60 10 25 . 1 Critical Kills 2 | . . . . . . . . . 2 . . . . Critical Parts Destroyed 7 | . . . . . . . . . 4 2 1 . . Critical Strikes 11 | . 1 . . . . . 1 . 6 2 1 . . Burn 2 | . 1 . . . . . 1 . . . . . . Destroy 9 | . . . . . . . . . 6 2 1 . . Melee Attacks . | . . . . . . . . . . . . . . Impact . | . . . . . . . . . . . . . . Slashing . | . . . . . . . . . . . . . . Piercing . | . . . . . . . . . . . . . . Sneak Attacks . | . . . . . . . . . . . . . . Combat Hostiles . | . . . . . . . . . . . . . . Follow-up Attacks . | . . . . . . . . . . . . . . Damage Inflicted 8200 | . 353 579 . 189 . 664 491 54 3304 803 1713 . 50 Guns 7071 | . 353 579 . 189 . 664 491 54 2393 803 1545 . . Cannons . | . . . . . . . . . . . . . . Explosions 1079 | . . . . . . . . . 911 . 168 . . Melee . | . . . . . . . . . . . . . . Ramming 50 | . . . . . . . . . . . . . 50 Kinetic 5986 | . . 579 . 189 . 664 418 . 1914 803 1419 . . Thermal 1085 | . 353 . . . . . 73 54 479 . 126 . . Explosive 1079 | . . . . . . . . . 911 . 168 . . Electromagnetic . | . . . . . . . . . . . . . . Impact . | . . . . . . . . . . . . . . Slashing . | . . . . . . . . . . . . . . Piercing . | . . . . . . . . . . . . . . Highest Corruption 7 | . . . . . . . . . . 2 7 . . Average Corruption 3 | . . . . . . . . . . 1 3 . . Corruption Purged . | . . . . . . . . . . . . . . Corruption Blocked . | . . . . . . . . . . . . . . Effects 13 | . . . . . . . . . . 3 10 . . Message Errors 4 | . . . . . . . . . . . 4 . . Matter Fused 5 | . . . . . . . . . . 1 4 . . Data Loss (minor) 3 | . . . . . . . . . . 2 1 . . Weapon Failures 1 | . . . . . . . . . . . 1 . . Overload Shots . | . . . . . . . . . . . . . . Overflow Damage 28 | . . . . . . . . . 22 . 6 . . Projectiles . | . . . . . . . . . . . . . . Explosions 28 | . . . . . . . . . 22 . 6 . . Melee . | . . . . . . . . . . . . . . Knockbacks . | . . . . . . . . . . . . . . Impact . | . . . . . . . . . . . . . . Kinetic . | . . . . . . . . . . . . . . Secondary . | . . . . . . . . . . . . . . Self-Inflicted Damage 180 | . . . . . . . . . 106 . 52 . 22 Shots 6 | . . . . . . . . . 4 . 2 . . Rammed 10 | . . . . . . . . . . . . . 10 Targets Rammed 10 | . . . . . . . . . . . . . 10 Kicked . | . . . . . . . . . . . . . . Crushed . | . . . . . . . . . . . . . . Highest Temperature 499 | . 195 . . . . 198 499 . 147 . 406 . 288 Average Temperature 91 | . 71 . . . . 80 186 . 33 . 115 . 152 Received Heat Transfer 2155 | . 63 219 . . . 252 178 . 480 84 273 . 606 Effects 9 | . . . . . . . 8 . . . 1 . . Shutdowns 2 | . . . . . . . 2 . . . . . . Energy Bleed 1 | . . . . . . . 1 . . . . . . Interference 3 | . . . . . . . 3 . . . . . . Matter Decay 2 | . . . . . . . 1 . . . 1 . . Damage (major) 1 | . . . . . . . 1 . . . . . . Siege Activations . | . . . . . . . . . . . . . . Martial Activations . | . . . . . . . . . . . . . . Shielding Activations . | . . . . . . . . . . . . . . Robots Disrupted . | . . . . . . . . . . . . . . Combat Hostiles . | . . . . . . . . . . . . . . Robots Corrupted . | . . . . . . . . . . . . . . Combat Hostiles . | . . . . . . . . . . . . . . Parts Fried . | . . . . . . . . . . . . . . Impact Corruptions . | . . . . . . . . . . . . . . Robots Melted 1 | . 1 . . . . . . . . . . . . Combat Hostiles 1 | . 1 . . . . . . . . . . . . Parts Melted 3 | . 2 . . . . . . . 1 . . . . Heat Transferred 2711 | . 1016 . . . . . 210 79 1184 . 222 . . Parts Sabotaged . | . . . . . . . . . . . . . . Parts Stolen . | . . . . . . . . . . . . . . Parts Stripped . | . . . . . . . . . . . . . . Power Chain Reactions . | . . . . . . . . . . . . . . Alert | -11 -10 -10 -10 -9 -8 -8 -8 -6 -6 -6 -6 -5 -5 ------- Run | Yrd Mat Min Exi Min Mat Sto Rec Fac Gar Fac Gar Fac Upp Maximum Alert Level 3 | . . . . . . . . . 3 2 2 1 . Low Security (%) 68 | 100 100 100 . 100 100 100 100 100 9 64 12 90 . Level 1 15 | . . . . . . . . . 35 22 63 9 . Level 2 10 | . . . . . . . . . 32 13 24 . . Level 3 5 | . . . . . . . . . 22 . . . . Level 4 . | . . . . . . . . . . . . . . Level 5 . | . . . . . . . . . . . . . . High Security . | . . . . . . . . . . . . . . Max Security . | . . . . . . . . . . . . . . Peak Influence 818 | . 84 135 . 60 8 54 41 30 818 435 434 212 . Initial 429 | . . 12 . . 8 . 13 . 9 429 119 212 . Average 164 | . 41 35 . 9 2 21 3 2 436 217 326 119 . Influence Increases 2537 | . 239 303 . 120 . 154 56 44 909 193 355 14 150 Destroy 0b10 Robot/C 1340 | . 160 240 . 100 . 100 40 20 440 40 200 . . Destroy 0b10 Robot/NC 55 | . 10 5 . . . 10 15 . 5 10 . . . Destroy Leader 234 | . 34 50 . 20 . 20 . 10 60 20 20 . . Allied During Kill 8 | . . 8 . . . . . . . . . . . Successful Hack 82 | . 5 . . . . 7 . 14 14 28 . 14 . Disable Machine 30 | . . . . . . . . . . 30 . . . Anti-Garrison Action 300 | . . . . . . . . . 300 . . . . Destroy Structure 158 | . . . . . . 2 1 . 90 5 60 . . Lose Combat Pursuer 330 | . 30 . . . . 15 . . . 60 75 . 150 Influence Decreases 2430 | . 207 294 41 98 22 120 90 30 105 841 121 398 63 Entered New Map 741 | . . 20 41 . 14 . 21 . 5 389 51 192 8 Time Decay 1297 | . 197 249 . 88 8 120 69 30 . 302 . 206 28 Lost Part 227 | . 10 10 . 10 . . . . 100 . 70 . 27 Lost Ally 15 | . . 15 . . . . . . . . . . . Purge Threat 150 | . . . . . . . . . . 150 . . . Squads Dispatched 2 | . . . . . . . . . . 1 . 1 . Investigation 1 | . . . . . . . . . . . . 1 . Extermination 1 | . . . . . . . . . . 1 . . . Reinforcement . | . . . . . . . . . . . . . . Assault . | . . . . . . . . . . . . . . Garrison . | . . . . . . . . . . . . . . Intercept . | . . . . . . . . . . . . . . Searches Triggered . | . . . . . . . . . . . . . . Construction Impeded . | . . . . . . . . . . . . . . Haulers Reinforced . | . . . . . . . . . . . . . . Active Scanning Responses . | . . . . . . . . . . . . . . Cargo Convoy Interrupts . | . . . . . . . . . . . . . . Stealth | -11 -10 -10 -10 -9 -8 -8 -8 -6 -6 -6 -6 -5 -5 --------- Run | Yrd Mat Min Exi Min Mat Sto Rec Fac Gar Fac Gar Fac Upp Distress Signals 2 | . 2 . . . . . . . . . . . . Communications Jammed . | . . . . . . . . . . . . . . Distress Signals . | . . . . . . . . . . . . . . Times Spotted 116 | . 12 13 . 5 2 7 5 2 23 15 16 . 16 Peak Tracking Total 13 | . 5 4 . 4 3 6 4 1 6 6 6 . 13 Tactical Retreats 11 | . 1 . . . . 1 . . . 4 3 . 2 Traps | -11 -10 -10 -10 -9 -8 -8 -8 -6 -6 -6 -6 -5 -5 ------- Run | Yrd Mat Min Exi Min Mat Sto Rec Fac Gar Fac Gar Fac Upp Traps Triggered 12 | . 1 . . . . . . . 6 2 2 1 . Indirectly . | . . . . . . . . . . . . . . Trap Hack Attempts . | . . . . . . . . . . . . . . Triggered . | . . . . . . . . . . . . . . Disarmed . | . . . . . . . . . . . . . . Reprogrammed . | . . . . . . . . . . . . . . Reused . | . . . . . . . . . . . . . . Traps Extracted . | . . . . . . . . . . . . . . Installed . | . . . . . . . . . . . . . . Triggered . | . . . . . . . . . . . . . . Machines | -11 -10 -10 -10 -9 -8 -8 -8 -6 -6 -6 -6 -5 -5 ---------- Run | Yrd Mat Min Exi Min Mat Sto Rec Fac Gar Fac Gar Fac Upp Machines Disabled 6 | . . . . . . . 1 . 2 2 1 . . Max in Single Turn 1 | . . . . . . . 1 . 1 1 1 . . Garrison Relay 2 | . . . . . . . . . 2 . . . . Machines Repaired . | . . . . . . . . . . . . . . Machines Dismantled . | . . . . . . . . . . . . . . Machines Sabotaged . | . . . . . . . . . . . . . . Overloaded Fab Kills . | . . . . . . . . . . . . . . Hacking | -11 -10 -10 -10 -9 -8 -8 -8 -6 -6 -6 -6 -5 -5 --------- Run | Yrd Mat Min Exi Min Mat Sto Rec Fac Gar Fac Gar Fac Upp Machines Accessed 18 | . 1 . 4 . . 1 2 1 1 4 3 1 . Terminals 11 | . 1 . . . . 1 1 . 1 3 3 1 . Fabricators . | . . . . . . . . . . . . . . Repair Stations . | . . . . . . . . . . . . . . Recycling Units . | . . . . . . . . . . . . . . Scanalyzers . | . . . . . . . . . . . . . . Garrison Access 2 | . . . . . . . . 1 . 1 . . . Total Hacks 30 | . 2 . 4 . . 1 6 1 1 9 4 2 . Successful 16 | . 1 . 4 . . 1 2 1 1 4 1 1 . Failed 14 | . 1 . . . . . 4 . . 5 3 1 . Catastrophic 2 | . . . . . . . . . . 1 1 . . Database Lockouts . | . . . . . . . . . . . . . . Manual 3 | . 2 . . . . 1 . . . . . . . Terminals 22 | . 2 . . . . 1 4 . 1 8 4 2 . Fabricators . | . . . . . . . . . . . . . . Repair Stations . | . . . . . . . . . . . . . . Recycling Units . | . . . . . . . . . . . . . . Scanalyzers . | . . . . . . . . . . . . . . Garrison Access 2 | . . . . . . . . 1 . 1 . . . Terminal Hacks 13 | . . . 4 . . 1 2 . 1 3 1 1 . Record 5 | . . . 4 . . . . . . 1 . . . Prototype ID Bank 1 | . . . . . . . . . . . . 1 . Open Door 2 | . . . . . . 1 . . . . 1 . . Unreport Threat 1 | . . . . . . . . . . 1 . . . Zone Layout 1 | . . . . . . . . . . 1 . . . Garrison Registry 1 | . . . . . . . . . 1 . . . . Release Object 2 | . . . . . . . 2 . . . . . . Fabricator Hacks . | . . . . . . . . . . . . . . Repair Station Hacks . | . . . . . . . . . . . . . . Recycling Unit Hacks . | . . . . . . . . . . . . . . Scanalyzer . | . . . . . . . . . . . . . . Garrison Access Hacks 2 | . . . . . . . . 1 . 1 . . . Unlock Access 2 | . . . . . . . . 1 . 1 . . . Unauthorized Hacks 1 | . 1 . . . . . . . . . . . . Terminals 1 | . 1 . . . . . . . . . . . . Botnet 1 | . 1 . . . . . . . . . . . . Fabricators . | . . . . . . . . . . . . . . Repair Stations . | . . . . . . . . . . . . . . Recycling Units . | . . . . . . . . . . . . . . Scanalyzers . | . . . . . . . . . . . . . . Garrison Access . | . . . . . . . . . . . . . . Data Cores Recovered 2 | . . . . . . . . . . 2 . . . Used . | . . . . . . . . . . . . . . Hacking Detections 11 | . 1 . . . . . 1 1 1 4 2 1 . Full Trace Events . | . . . . . . . . . . . . . . Feedback Events . | . . . . . . . . . . . . . . Feedback Blocked . | . . . . . . . . . . . . . . Robot Schematics Acquired . | . . . . . . . . . . . . . . Robots Built . | . . . . . . . . . . . . . . Authchips . | . . . . . . . . . . . . . . Time . | . . . . . . . . . . . . . . Total Robot Build Rating . | . . . . . . . . . . . . . . Part Schematics Acquired . | . . . . . . . . . . . . . . Parts Built . | . . . . . . . . . . . . . . Authchips . | . . . . . . . . . . . . . . Time . | . . . . . . . . . . . . . . Total Part Build Rating . | . . . . . . . . . . . . . . Part Studies Acquired . | . . . . . . . . . . . . . . Parts Repaired . | . . . . . . . . . . . . . . Time . | . . . . . . . . . . . . . . Parts Recycled . | . . . . . . . . . . . . . . Recycled Matter . | . . . . . . . . . . . . . . Retrieved Matter . | . . . . . . . . . . . . . . Retrieved Components . | . . . . . . . . . . . . . . Parts Scanalyzed . | . . . . . . . . . . . . . . Part Schematics Acquired . | . . . . . . . . . . . . . . Parts Damaged . | . . . . . . . . . . . . . . Bothacking | -11 -10 -10 -10 -9 -8 -8 -8 -6 -6 -6 -6 -5 -5 ------------ Run | Yrd Mat Min Exi Min Mat Sto Rec Fac Gar Fac Gar Fac Upp Used RIF Installer 1 | . . . . . . . . . 1 . . . . Robots Hacked . | . . . . . . . . . . . . . . Non-combat . | . . . . . . . . . . . . . . Combat . | . . . . . . . . . . . . . . Robot Hacks Applied . | . . . . . . . . . . . . . . Relay Couplers Released 8 | . . . . . . . . . 8 . . . . Machine Destruction 8 | . . . . . . . . . 8 . . . . Fabnet Peak Effective % . | . . . . . . . . . . . . . . Robots Rewired . | . . . . . . . . . . . . . . Allies Hacked . | . . . . . . . . . . . . . . Hacks Repelled . | . . . . . . . . . . . . . . Allies | -11 -10 -10 -10 -9 -8 -8 -8 -6 -6 -6 -6 -5 -5 -------- Run | Yrd Mat Min Exi Min Mat Sto Rec Fac Gar Fac Gar Fac Upp Total Allies 4 | . . 3 . . . . . . . . 1 . . Largest Group 3 | . . 3 1 1 . . . . . . 1 . . Highest-Rated Group 51 | . . 40 16 16 . . . . . . 51 . . Highest-Rated Ally 51 | . . 16 16 16 . . . . . . 51 . . Total Orders . | . . . . . . . . . . . . . . Ally Attacks 16 | . . 11 . 3 . . . . . . 2 . . Total Damage 176 | . . 140 . 13 . . . . . . 23 . . Kills 3 | . . 3 . . . . . . . . . . . Allies Corrupted . | . . . . . . . . . . . . . . Allies Melted 1 | . . . . . . . 1 . . . . . . Intel | -11 -10 -10 -10 -9 -8 -8 -8 -6 -6 -6 -6 -5 -5 ------- Run | Yrd Mat Min Exi Min Mat Sto Rec Fac Gar Fac Gar Fac Upp Active Infowar (turns) . | . . . . . . . . . . . . . . Robot Analysis Total . | . . . . . . . . . . . . . . Derelict Logs Recovered 4 | . . 3 . 1 . . . . . . . . . Drone Launches . | . . . . . . . . . . . . . . Drone Recoveries . | . . . . . . . . . . . . . . Exploration | -11 -10 -10 -10 -9 -8 -8 -8 -6 -6 -6 -6 -5 -5 ------------- Run | Yrd Mat Min Exi Min Mat Sto Rec Fac Gar Fac Gar Fac Upp Turns Passed 8636 | 57 471 858 540 554 63 301 1398 411 1887 674 460 430 532 Spaces Moved 4603 | 49 332 621 470 404 43 139 487 216 775 337 264 162 304 Core 4 | 2 2 . . . . . . . . . . . . Treads 220 | 1 . 5 . . . . . . 214 . . . . Legs 1261 | . . . . . . . 235 143 511 247 125 . . Wheels 2252 | 46 330 616 470 404 43 139 204 . . . . . . Hover 672 | . . . . . . . 48 73 35 68 . 144 304 Flight 194 | . . . . . . . . . 15 22 139 18 . Fastest Speed 50 | 50 95 115 115 115 130 130 93 158 73 113 64 64 53 Average Speed 117 | 88 98 117 115 115 130 130 136 171 103 113 102 127 116 Slowest Speed 250 | 160 250 240 115 130 130 130 178 178 158 124 211 135 135 Overloaded Moves . | . . . . . . . . . . . . . . Propulsion Burnouts . | . . . . . . . . . . . . . . Robots Hopped 3 | . . . . . . . . . . . 3 . . Potential Cave-ins . | . . . . . . . . . . . . . . Cave-ins Triggered . | . . . . . . . . . . . . . . Exploration Rate (%) 44 | 4 49 97 89 90 6 23 79 9 74 11 30 5 51 Regions Visited 13 Branch Regions 6 Pre-discovered Areas 2 | . . 2 . . . . . . . . . . . Known Exits Taken 4 | . . . 1 . 1 . . 1 . 1 . . . Unknown Exits Taken 7 | 1 1 1 . 1 . 1 1 . . . . 1 . Scrap Searched 4 | . . 1 . . . . . . . . . . 3 Spaces Dug . | . . . . . . . . . . . . . . Terrain Destroyed 145 | . . . . . . . . . 89 5 51 . . Melee . | . . . . . . . . . . . . . . Projectile 15 | . . . . . . . . . 3 5 7 . . AOE 130 | . . . . . . . . . 86 . 44 . . Terrain Rammed . | . . . . . . . . . . . . . . Walls Destroyed . | . . . . . . . . . . . . . . Machines Disabled . | . . . . . . . . . . . . . . Actions | -11 -10 -10 -10 -9 -8 -8 -8 -6 -6 -6 -6 -5 -5 --------- Run | Yrd Mat Min Exi Min Mat Sto Rec Fac Gar Fac Gar Fac Upp Total 7428 | 59 429 699 469 470 50 242 1204 255 1709 597 378 387 480 Wait 2342 | . 48 45 . 41 . 59 670 34 758 240 67 218 162 Move 4583 | 48 331 620 469 403 42 138 486 215 773 337 256 161 304 Hop 3 | . . . . . . . . . . . 3 . . Pick Up 69 | 5 14 3 . 4 4 9 7 1 15 3 . 3 1 Fast Attach 16 | 6 3 1 . . . 1 2 . 2 . . 1 . Attach 27 | . 1 1 . 2 4 . 4 2 10 . 2 1 . Detach 8 | . . . . . . . 4 . 2 . 1 1 . Swap 18 | . 1 1 . 3 . 7 2 . 2 . 2 . . Drop 57 | . 6 3 . 4 . 14 15 1 7 2 . 2 3 Fire 233 | . 25 25 . 13 . 14 14 2 88 15 37 . . Melee . | . . . . . . . . . . . . . . Ram 10 | . . . . . . . . . . . . . 10 Kick . | . . . . . . . . . . . . . . Crush . | . . . . . . . . . . . . . . Escape Stasis 62 | . . . . . . . . . 52 . 10 . . Rewire . | . . . . . . . . . . . . . . Trap . | . . . . . . . . . . . . . . Miscellaneous . | . . . . . . . . . . . . . . Route ------- -11/Scrapyard -10/Materials (discovered 2 exits: [*Mat] / [*Min]) -10/Mines (discovered 3 exits: [*Mat x2] / *Exi) -10/Exiles (discovered 2 exits: *Min x2) -9/Mines -8/Materials -8/Storage -8/Recycling -6/Factory -6/Garrison (discovered 3 exits: *Fac x3) -6/Factory -6/Garrison -5/Factory -5/Upper Caves History --------- Turn | Location | Event 7 | -11/Scrapyard | Discovered new exit (range 15) 58 | -11/Scrapyard | Entered Materials 155 | -10/Materials | Discovered new exit (range 6) 306 | -10/Materials | Build established: Mutant 338 | -10/Materials | Discovered new exit (range 7) 529 | -10/Materials | Entered Mines 683 | -10/Mines | Core integrity fell below 50% 804 | -10/Mines | Discovered new exit (range 9) 835 | -10/Mines | Discovered new exit (range 7) 914 | -10/Mines | Learned location of Storage (-8) 1159 | -10/Mines | Assisted by bots powering up and referring to "LRC-V3" 1369 | -10/Mines | Deemed a non-threat by the Exiles lab entrance 1369 | -10/Mines | Discovered new exit (range 5) 1387 | -10/Mines | Entered Exiles 1387 | -10/Exiles | Found Exiles lab abandoned 1387 | -10/Exiles | Accompanied by 1 ally 1388 | -10/Exiles | Identified exit to Mines 1927 | -10/Exiles | Entered Mines 1927 | -9/Mines | Accompanied by 1 ally 1928 | -9/Mines | Assembled infested the area 1933 | -9/Mines | Assisted by a Guerilla fighting off Assembled 2014 | -9/Mines | Received a Rocket Launcher from a helpful Derelict 2046 | -9/Mines | Found a damaged Exp. Sensor Array with a note attached 2050 | -9/Mines | Found Prototype Device 2068 | -9/Mines | Core integrity fell below 20% 2171 | -9/Mines | Learned Materials terminal intel 2374 | -9/Mines | Discovered new exit (range 12) 2481 | -9/Mines | Entered Materials 2481 | -8/Materials | Evolved 4 slots: Propulsion x1, Utility x1, Weapon x2 2482 | -8/Materials | Identified exit to Storage 2483 | -8/Materials | Loaded intel: 10 terminal locations 2544 | -8/Materials | Entered Storage 2703 | -8/Storage | Met 01-MTF 2824 | -8/Storage | Used back door to open Recycling access 2824 | -8/Storage | Discovered new exit (range 5) 2845 | -8/Storage | Entered Recycling 2845 | -8/Recycling | Accompanied by 1 ally (01-MTF) 2846 | -8/Recycling | Met a Zionite searching for Scraptown 2926 | -8/Recycling | Scanned before Scraplab entrance 2968 | -8/Recycling | Entered Scraplab 2980 | -8/Recycling | Discovered new exit (range 2) 3001 | -8/Recycling | Angered Scraplab inhabitants 3050 | -8/Recycling | Found Prototype Device 3050 | -8/Recycling | Identified Scrap Engine 3600 | -8/Recycling | Build established: Construct 4235 | -8/Recycling | Discovered new exit (range 5) 4243 | -8/Recycling | Entered Factory 4243 | -6/Factory | Evolved 4 slots: Power x1, Propulsion x1, Utility x2 4646 | -6/Factory | Identified exit to Garrison 4654 | -6/Factory | Entered Garrison 4686 | -6/Garrison | Triggered checkpoint 4763 | -6/Garrison | Garrison Relay disabled 4796 | -6/Garrison | Spotted B-75 Beast 4800 | -6/Garrison | Triggered checkpoint 4925 | -6/Garrison | Lost 5 parts (1n2u2w) 4950 | -6/Garrison | Destroyed B-75 Beast 5379 | -6/Garrison | Triggered checkpoint 5656 | -6/Garrison | Triggered checkpoint 5812 | -6/Garrison | Garrison Relay disabled 5830 | -6/Garrison | Discovered new exit (range 13) 5923 | -6/Garrison | Discovered new exit (range 51) 5923 | -6/Garrison | Discovered new exit (range 33) 5923 | -6/Garrison | Discovered new exit (range 19) 5932 | -6/Garrison | Triggered checkpoint 6042 | -6/Garrison | Spotted B-86 Titan 6076 | -6/Garrison | Triggered checkpoint 6387 | -6/Garrison | Build established: Scavenger-Construct 6446 | -6/Garrison | Installed Relay Interface Framework 6541 | -6/Garrison | Entered Factory 7215 | -6/Factory | Identified exit to Garrison 7215 | -6/Factory | Entered Garrison 7267 | -6/Garrison | Triggered checkpoint 7281 | -6/Garrison | Core integrity fell below 50% 7435 | -6/Garrison | Rescued a captive Derelict 7505 | -6/Garrison | P-60 Hacker assimilated allied YM-4UB(h) 7607 | -6/Garrison | Lost 6 parts (1p5w) 7650 | -6/Garrison | Discovered new exit (range 14) 7663 | -6/Garrison | Triggered checkpoint 7675 | -6/Garrison | Entered Factory 7675 | -5/Factory | Evolved 2 slots: Propulsion x1, Utility x1 7824 | -5/Factory | Build established: Construct 7999 | -5/Factory | Found Launcher Loader 8017 | -5/Factory | Discovered new exit (range 6) 8105 | -5/Factory | Entered Upper Caves 8283 | -5/Upper Caves | Spotted B-75 Beast 8598 | -5/Upper Caves | Attracted the attention of an 0b10 outpost 8637 | -5/Upper Caves | Attracted the attention of an 0b10 checkpoint 8637 | -5/Upper Caves | Self-destructed Last Messages --------------- 08542_ Scrap Engine core remains intact and functional. 08554_ Searching scrap... 08554_ Found Imp. Coolant Injector. 08554_ Found 57 Matter. 08595_ Dropped Hvy. Armor Plating. 08596_ Scrap Engine consumes Hvy. Armor Plating. 08597_ Scrap Engine consumes Neutrino Core. 08598_ Y-72 Warden: "DETECTED UNIDENTIFIED DERELICT." 08599_ Dropped Hcp. Storage Unit. 08602_ Y-72 Warden: "REQUESTING BACKUP." 08613_ Hovering Gravmag-Armored Exoskeleton destroyed. 08613_ Hovering Gravmag-Armored Exoskeleton core remains intact and functional. 08627_ Scrap Engine envelopes itself in armor. 08631_ S-27 Virus destroyed. 08631_ XQ-ECV(r) collects Lgt. Nuclear Core. 08636_ Penetrated by Slug. 08636_ Arm. Scrap Engine destroyed. 08636_ Scrap Engine core remains intact and functional. 08637_ Y-64 Sentinel: "INTERCEPTING UNREGISTERED DERELICT." Map ----- +----------------------------------------------------+ | ?????????????????? ??????????????????????????? | | ?? ??????????????? ??????????????????????????? | | ?? ????????????? ???????????????????????????? | | ?? ?????????????# ???????????????????????????? | | ## ??????????????# #???????????????????????????? | | # ??????????????# #???????????????????????????? | | ??????????????# #???????????????????????????? | | ???????######## #???????????????????????????? | | ????????#$ ###?????????????????????????? | | ????????# ##????????????????????????? | | ????????# #### #????????????????????????? | | #????????# ##### ##???????????????????????? | | ##???????# ## #### ##??????????????????????? | | ##??????# ## ## #??????????????????????? | | ##?????# ## =%= #####??????????????????? | | ##????# ### ##?????????????????? | | ##???# #?## #?????????????????? | | ## #???# #??# ## #?????????????????? | | #### #???# #??# # #?### ##?????????????????? | | #??# ##??# #?## # ########??????????????????? | | ???# #### #?# #????????????????????? | | ???# ## ### #????????????????????? | | ???# ## "" ## #????????????????????? | | ???# ### """"" #???????????????????????? | | ???## #######?# """ ## ####?????????????????? | | ????#####???????# " @ #?????????????????? | | ????????????????# "" "" #?????????????? | | ????????????????# """ "# #?????????????? | | ????????????????# "" " "# #?????????????? | | ????????????????# # Y #?????????????? | | ????????????????# ## #?????????????? | | ????????????????##########?# #?????????????? | | ???????????????????????????? #?????????????? | | ????????????????????????????########?????????????? | | ?????????????????????????????????????????????????? | | ?????????????????????????????????????????????????? | | ?????????????????????????????????????????????????? | | ?????????????????????????????????????????????????? | | ?????????????????????????????????????????????????? | | ?????????????????????????????????????????????????? | | ?????????????????????????????????????????????????? | | ?????????????????????????????????????????????????? | | ?????????????????????????????????????????????????? | | ?????????????????????????????????????????????????? | | ?????????????????????????????????????????????????? | | ?????????????????????????????????????????????????? | | ?????????????????????????????????????????????????? | | | | | | | +----------------------------------------------------+ Best States ------------- Heat Dissipation 71 Energy Generation 32 Energy Capacity 314 Matter Stores 300 Matter Capacity 300 Sight Range 16 Terrain Scan Density 10 Armor Coverage 450 Evasion (%) 57 Targeting Accuracy 5 Recoil Reduction 4 Salvage Targeting 4 Offensive Hacking 10 Item Schematics ----------------- None Robot Schematics ------------------ None Fabricated ------------ Nothing Repaired ---------- Nothing Studied --------- None Alien Tech Used ----------------- None Achievements -------------- Frienemies Join The Dark Side Let Me Out Of Here Not So Scrappy Scrappetite Sprinter You May Approach The Wall Challenges ------------ None Game ------ Seed SalvagingGravitonBeam Manual? 0 Play Time 00:59:05 Cumulative 215.3 hours Start 2025.11.29 @ 08:55:14 End 2025.12.02 @ 15:50:34 Sessions 3 Manual Loads 0 Difficulty Rogue Special Mode None Game No. 276 Rogue 232 Adventurer 4 Explorer 40 Win Type - Total 8 Types 7/1/0/0/0/0/0/0/0/0 Lore% 31 Gallery% 62 Achievement% 40 Wizard Run 0 Options --------- Layout 0 ASCII 0 Keyboard 0 Movement Mouse Keybinds 0 Fullscreen 1 Font 24/Smallcaps Map View 76x50 Zoom Use 0% Tactical HUD 1 Map Filters NONE Filters NONE Steam 1 RUN: 2b568010-9dfd-4080-ac5c-24b773abfde5